fUSD/lending_fUSD_20251225
["ID","MTS","AMOUNT","RATE_DAILY","PERIOD"]
[399736994,1766645447015,-207.98052348,0.00016094,2]
[399736995,1766645447025,-172.12623375,0.00016094,2]
[399736996,1766645447036,-150.03943629,0.00016094,2]
[399736997,1766645447046,-299.35190735,0.00016094,2]
[399736998,1766645447056,-150.0,0.00016095,2]
[399736999,1766645447066,-150.0,0.00016101,2]
[399737000,1766645447075,-150.0,0.0001611,2]
[399737001,1766645447085,-207.98052348,0.00016111,2]
[399737002,1766645447096,-172.12623375,0.00016111,2]
[399737003,1766645447106,-150.03943629,0.00016111,2]
[399737004,1766645447116,-299.35190735,0.00016111,2]
[399737005,1766645447128,-9999.99,0.00016116,2]
[399737006,1766645447137,-150.0,0.00016125,2]
[399737007,1766645447147,-150.0,0.00016128,2]
[399737008,1766645447157,-207.98052348,0.00016128,2]
[399737009,1766645447167,-172.12623375,0.00016128,2]
[399737010,1766645447178,-150.03943629,0.00016128,2]
[399737011,1766645447187,-299.35190735,0.00016128,2]
[399737012,1766645447198,-150.0,0.00016137,2]
[399737013,1766645447208,-150.0,0.00016137,2]
[399737014,1766645447218,-150.0,0.00016137,2]
[399737015,1766645447227,-150.0,0.00016137,2]
[399737016,1766645447237,-150.0,0.00016137,2]
[399737017,1766645447247,-150.0,0.00016137,2]
[399737018,1766645447257,-207.98052348,0.00016146,2]
[399737019,1766645447267,-172.12623375,0.00016146,2]
[399737020,1766645447278,-150.03943629,0.00016146,2]
[399737021,1766645447287,-299.35190735,0.00016146,2]
[399737022,1766645447297,-150.0,0.00016146,2]
[399737023,1766645447307,-150.0,0.00016149,2]
[399737024,1766645447317,-207.98052348,0.00016163,2]
[399737025,1766645447327,-172.12623375,0.00016163,2]
[399737026,1766645447337,-150.03943629,0.00016163,2]
[399737027,1766645447347,-299.35190735,0.00016163,2]
[399737028,1766645447357,-150.0,0.00016164,2]
[399737029,1766645447367,-150.0,0.00016173,2]
[399737030,1766645447376,-150.0,0.00016179,2]
[399737031,1766645447387,-207.98052348,0.0001618,2]
[399737032,1766645447398,-172.12623375,0.0001618,2]
[399737033,1766645447408,-150.03943629,0.0001618,2]
[399737034,1766645447418,-299.35190735,0.0001618,2]
[399737035,1766645447427,-150.0,0.00016182,2]
[399737036,1766645447438,-150.0,0.00016183,2]
[399737037,1766645447448,-150.0,0.00016197,2]
[399737038,1766645447458,-207.98052348,0.00016197,2]
[399737039,1766645447468,-172.12623375,0.00016197,2]
[399737040,1766645447478,-150.03943629,0.00016197,2]
[399737041,1766645447488,-299.35190735,0.00016197,2]
[399737042,1766645447498,-150.0,0.00016201,2]
[399737043,1766645447508,-150.0,0.00016202,2]
[399737044,1766645447519,-150.0,0.00016208,2]
[399737045,1766645447529,-207.98052348,0.00016214,2]
[399737046,1766645447539,-172.12623375,0.00016214,2]
[399737047,1766645447549,-150.03943629,0.00016214,2]
[399737048,1766645447558,-299.35190735,0.00016214,2]
[399737049,1766645447569,-150.0,0.00016219,2]
[399737050,1766645447579,-150.0,0.00016221,2]
[399737051,1766645447589,-150.0,0.00016222,2]
[399737052,1766645447599,-207.98052348,0.00016231,2]
[399737053,1766645447610,-172.12623375,0.00016231,2]
[399737054,1766645447621,-150.03943629,0.00016231,2]
[399737055,1766645447631,-299.35190735,0.00016231,2]
[399737056,1766645447640,-150.0,0.00016231,2]
[399737057,1766645447652,-58303.00077057,0.00016234,2]
[399737058,1766645447662,-150.0,0.00016237,2]
[399737059,1766645447673,-150.0,0.00016245,2]
[399737060,1766645447683,-207.98052348,0.00016249,2]
[399737061,1766645447699,-172.12623375,0.00016249,2]
[399737062,1766645447714,-150.03943629,0.00016249,2]
[399737063,1766645447724,-299.35190735,0.00016249,2]
[399737064,1766645447736,-150.0,0.00016256,2]
[399737065,1766645447748,-150.0,0.00016264,2]
[399737066,1766645447759,-1098.0,0.00016265,2]
[399737067,1766645447769,-207.98052348,0.00016266,2]
[399737068,1766645447779,-172.12623375,0.00016266,2]
[399737069,1766645447790,-150.03943629,0.00016266,2]
[399737070,1766645447801,-299.35190735,0.00016266,2]
[399737071,1766645447811,-150.0,0.00016268,2]
[399737072,1766645447822,-150.0,0.00016269,2]
[399737073,1766645447832,-150.0,0.00016271,2]
[399737074,1766645447842,-150.0,0.00016274,2]
[399737075,1766645447852,-150.0,0.00016279,2]
[399737076,1766645447862,-207.98052348,0.00016283,2]
[399737077,1766645447873,-172.12623375,0.00016283,2]
[399737078,1766645447882,-150.03943629,0.00016283,2]
[399737079,1766645447892,-299.35190735,0.00016283,2]
[399737080,1766645447902,-150.0,0.00016292,2]
[399737081,1766645447912,-150.0,0.00016292,2]
[399737082,1766645447922,-207.98052348,0.000163,2]
[399737083,1766645447932,-172.12623375,0.000163,2]
[399737084,1766645447942,-150.03943629,0.000163,2]
[399737085,1766645447952,-299.35190735,0.000163,2]
[399737086,1766645447961,-150.0,0.00016307,2]
[399737087,1766645447972,-150.0,0.00016311,2]
[399737088,1766645447982,-150.0,0.00016316,2]
[399737089,1766645447992,-207.98052348,0.00016317,2]
[399737090,1766645448002,-172.12623375,0.00016317,2]
[399737091,1766645448012,-150.03943629,0.00016317,2]
[399737092,1766645448022,-299.35190735,0.00016317,2]
[399737093,1766645448032,-150.0,0.00016329,2]
[399737094,1766645448042,-150.0,0.00016333,2]
[399737095,1766645448052,-207.98052348,0.00016334,2]
[399737096,1766645448062,-172.12623375,0.00016334,2]
[399737097,1766645448072,-150.03943629,0.00016334,2]
[399737098,1766645448082,-299.35190735,0.00016334,2]
[399737099,1766645448092,-150.0,0.0001634,2]
[399737100,1766645448103,-150.0,0.00016347,2]
[399737101,1766645448113,-150.0,0.00016349,2]
[399737102,1766645448123,-150.0,0.00016349,2]
[399737103,1766645448133,-207.98052348,0.00016351,2]
[399737104,1766645448143,-172.12623375,0.00016351,2]
[399737105,1766645448153,-150.03943629,0.00016351,2]
[399737106,1766645448163,-299.35190735,0.00016351,2]
[399737107,1766645448173,-150.0,0.0001636,2]
[399737108,1766645448183,-150.0,0.00016364,2]
[399737109,1766645448193,-150.0,0.00016365,2]
[399737110,1766645448504,-207.98052348,0.00016369,2]
[399737111,1766645448516,-172.12623375,0.00016369,2]
[399737112,1766645448526,-150.03943629,0.00016369,2]
[399737113,1766645448537,-299.35190735,0.00016369,2]
[399737114,1766645448547,-150.0,0.00016384,2]
[399737115,1766645448557,-207.98052348,0.00016386,2]
[399737116,1766645448567,-172.12623375,0.00016386,2]
[399737117,1766645448576,-150.03943629,0.00016386,2]
[399737118,1766645448587,-299.35190735,0.00016386,2]
[399737119,1766645448596,-150.0,0.00016388,2]
[399737120,1766645448606,-150.0,0.00016392,2]
[399737121,1766645448617,-150.0,0.00016398,2]
[399737122,1766645448627,-228.0,0.000164,2]
[399737123,1766645448637,-319.0,0.000164,2]
[399737124,1766645448647,-182.0,0.000164,2]
[399737125,1766645448656,-184.24951816,0.000164,2]
[399737126,1766645448666,-150.0,0.00016402,2]
[399737127,1766645448676,-207.98052348,0.00016403,2]
[399737128,1766645448687,-172.12623375,0.00016403,2]
[399737129,1766645448700,-150.03943629,0.00016403,2]
[399737130,1766645448710,-299.35190735,0.00016403,2]
[399737131,1766645448720,-150.0,0.00016412,2]
[399737132,1766645448731,-207.98052348,0.0001642,2]
[399737133,1766645448741,-172.12623375,0.0001642,2]
[399737134,1766645448751,-150.03943629,0.0001642,2]
[399737135,1766645448762,-150.0,0.0001642,2]
[399737136,1766645448772,-150.0,0.0001642,2]
[399737137,1766645448782,-299.35190735,0.0001642,2]
[399737138,1766645448793,-150.0,0.0001642,2]
[399737139,1766645448802,-150.0,0.0001642,2]
[399737140,1766645448812,-150.0,0.00016434,2]
[399737141,1766645448822,-150.0,0.00016436,2]
[399737142,1766645448832,-207.98052348,0.00016437,2]
[399737143,1766645448842,-172.12623375,0.00016437,2]
[399737144,1766645448852,-150.03943629,0.00016437,2]
[399737145,1766645448863,-299.35190735,0.00016437,2]
[399737146,1766645448872,-500.0,0.00016438,2]
[399737147,1766645448882,-500.0,0.00016438,2]
[399737148,1766645448891,-500.0,0.00016438,2]
[399737149,1766645448901,-500.0,0.00016438,2]
[399737150,1766645448911,-500.0,0.00016438,2]
[399737151,1766645448920,-500.0,0.00016438,2]
[399737152,1766645448930,-193.57567105,0.00016438,2]
[399737153,1766645448940,-500.0,0.00016438,2]
[399737154,1766645448949,-500.0,0.00016438,2]
[399737155,1766645448959,-500.0,0.00016438,2]
[399737156,1766645448969,-500.0,0.00016438,2]
[399737157,1766645448978,-500.0,0.00016438,2]
[399737158,1766645448989,-500.0,0.00016438,2]
[399737159,1766645448998,-500.0,0.00016438,2]
[399737160,1766645449008,-500.0,0.00016438,2]
[399737161,1766645449018,-500.0,0.00016438,2]
[399737162,1766645449028,-500.0,0.00016438,2]
[399737163,1766645449038,-500.0,0.00016438,2]
[399737164,1766645449048,-500.0,0.00016438,2]
[399737165,1766645449057,-500.0,0.00016438,2]
[399737166,1766645449067,-500.0,0.00016438,2]
[399737167,1766645449076,-500.0,0.00016438,2]
[399737168,1766645449086,-500.0,0.00016438,2]
[399737169,1766645449095,-500.0,0.00016438,2]
[399737170,1766645449104,-500.0,0.00016438,2]
[399737171,1766645449114,-500.0,0.00016438,2]
[399737172,1766645449124,-500.0,0.00016438,2]
[399737173,1766645449135,-500.0,0.00016438,2]
[399737174,1766645449144,-500.0,0.00016438,2]
[399737175,1766645449153,-500.0,0.00016438,2]
[399737176,1766645449163,-500.0,0.00016438,2]
[399737177,1766645449173,-500.0,0.00016438,2]
[399737178,1766645449183,-500.0,0.00016438,2]
[399737179,1766645449192,-500.0,0.00016438,2]
[399737180,1766645449201,-500.0,0.00016438,2]
[399737181,1766645449211,-500.0,0.00016438,2]
[399737182,1766645449221,-500.0,0.00016438,2]
[399737183,1766645449231,-500.0,0.00016438,2]
[399737184,1766645449242,-500.0,0.00016438,2]
[399737185,1766645449252,-500.0,0.00016438,2]
[399737186,1766645449262,-500.0,0.00016438,2]
[399737187,1766645449272,-500.0,0.00016438,2]
[399737188,1766645449282,-500.0,0.00016438,2]
[399737189,1766645449291,-500.0,0.00016438,2]
[399737190,1766645449302,-350.0,0.00016438,2]
[399737191,1766645449311,-500.0,0.00016438,2]
[399737192,1766645449321,-500.0,0.00016438,2]
[399737193,1766645449331,-800.0,0.00016438,2]
[399737194,1766645449341,-150.0,0.00016438,2]
[399737195,1766645449351,-716.0,0.00016438,2]
[399737196,1766645449361,-150.0,0.0001645,2]
[399737197,1766645449371,-207.98052348,0.00016454,2]
[399737198,1766645449381,-172.12623375,0.00016454,2]
[399737199,1766645449391,-150.03943629,0.00016454,2]
[399737200,1766645449401,-299.35190735,0.00016454,2]
[399737201,1766645449411,-150.0,0.00016457,2]
[399737202,1766645449421,-150.0,0.0001646,2]
[399737203,1766645449431,-150.0,0.00016464,2]
[399737204,1766645449441,-207.98052348,0.00016472,2]
[399737205,1766645449451,-172.12623375,0.00016472,2]
[399737206,1766645449460,-150.03943629,0.00016472,2]
[399737207,1766645449470,-299.35190735,0.00016472,2]
[399737208,1766645449480,-150.0,0.00016475,2]
[399737209,1766645449491,-150.0,0.00016477,2]
[399737210,1766645449500,-223.0315306,0.00016482,2]
[399737211,1766645449510,-150.0,0.00016484,2]
[399737212,1766645449519,-200.0,0.00016484,2]
[399737213,1766645449529,-200.0,0.00016484,2]
[399737214,1766645449539,-500.0,0.00016484,2]
[399737215,1766645449549,-207.98052348,0.00016489,2]
[399737216,1766645449558,-172.12623375,0.00016489,2]
[399737217,1766645449568,-150.03943629,0.00016489,2]
[399737218,1766645449579,-299.35190735,0.00016489,2]
[399737219,1766645449589,-150.0,0.00016491,2]
[399737220,1766645449600,-150.0,0.00016493,2]
[399737221,1766645449610,-207.98052348,0.00016506,2]
[399737222,1766645449620,-172.12623375,0.00016506,2]
[399737223,1766645449630,-150.03943629,0.00016506,2]
[399737224,1766645449640,-299.35190735,0.00016506,2]
[399737225,1766645449650,-150.0,0.00016508,2]
[399737226,1766645449660,-150.0,0.00016511,2]
[399737227,1766645449670,-150.0,0.00016519,2]
[399737228,1766645449680,-207.98052348,0.00016523,2]
[399737229,1766645449691,-172.12623375,0.00016523,2]
[399737230,1766645449702,-150.03943629,0.00016523,2]
[399737231,1766645449712,-299.35190735,0.00016523,2]
[399737232,1766645449722,-150.0,0.00016529,2]
[399737233,1766645449732,-150.0,0.0001653,2]
[399737234,1766645449743,-150.0,0.00016532,2]
[399737235,1766645449753,-150.0,0.00016539,2]
[399737236,1766645449763,-207.98052348,0.0001654,2]
[399737237,1766645449775,-172.12623375,0.0001654,2]
[399737238,1766645449785,-150.03943629,0.0001654,2]
[399737239,1766645449795,-299.35190735,0.0001654,2]
[399737240,1766645449805,-150.0,0.00016548,2]
[399737241,1766645449816,-150.0,0.00016556,2]
[399737242,1766645449826,-207.98052348,0.00016557,2]
[399737243,1766645449836,-172.12623375,0.00016557,2]
[399737244,1766645449846,-150.03943629,0.00016557,2]
[399737245,1766645449856,-299.35190735,0.00016557,2]
[399737246,1766645449866,-150.0,0.00016562,2]
[399737247,1766645449875,-150.0,0.00016562,2]
[399737248,1766645449885,-150.0,0.00016562,2]
[399737249,1766645449895,-150.0,0.00016566,2]
[399737250,1766645449905,-207.98052348,0.00016575,2]
[399737251,1766645449915,-172.12623375,0.00016575,2]
[399737252,1766645449924,-150.03943629,0.00016575,2]
[399737253,1766645449934,-299.35190735,0.00016575,2]
[399737254,1766645449944,-150.0,0.0001658,2]
[399737255,1766645449954,-150.0,0.00016584,2]
[399737256,1766645449964,-207.98052348,0.00016592,2]
[399737257,1766645449974,-172.12623375,0.00016592,2]
[399737258,1766645449983,-150.03943629,0.00016592,2]
[399737259,1766645449993,-299.35190735,0.00016592,2]
[399737260,1766645450003,-150.0,0.00016594,2]
[399737261,1766645450013,-150.0,0.00016603,2]
[399737262,1766645450024,-150.0,0.00016604,2]
[399737263,1766645450033,-150.0,0.00016604,2]
[399737264,1766645450043,-207.98052348,0.00016609,2]
[399737265,1766645450053,-172.12623375,0.00016609,2]
[399737266,1766645450063,-150.03943629,0.00016609,2]
[399737267,1766645450073,-299.35190735,0.00016609,2]
[399737268,1766645450084,-150.0,0.00016609,2]
[399737269,1766645450094,-150.0,0.00016621,2]
[399737270,1766645450104,-207.98052348,0.00016626,2]
[399737271,1766645450114,-172.12623375,0.00016626,2]
[399737272,1766645450123,-150.03943629,0.00016626,2]
[399737273,1766645450133,-299.35190735,0.00016626,2]
[399737274,1766645450143,-150.0,0.00016627,2]
[399737275,1766645450153,-150.0,0.00016629,2]
[399737276,1766645450163,-150.0,0.00016632,2]
[399737277,1766645450173,-150.0,0.00016639,2]
[399737278,1766645450183,-207.98052348,0.00016643,2]
[399737279,1766645450192,-172.12623375,0.00016643,2]
[399737280,1766645450202,-150.03943629,0.00016643,2]
[399737281,1766645450212,-299.35190735,0.00016643,2]
[399737282,1766645450222,-150.0,0.00016647,2]
[399737283,1766645450232,-150.0,0.00016651,2]
[399737284,1766645450242,-500.0,0.00016658,2]
[399737285,1766645450252,-150.0,0.00016658,2]
[399737286,1766645450262,-150.0,0.0001666,2]
[399737287,1766645450271,-207.98052348,0.0001666,2]
[399737288,1766645450281,-172.12623375,0.0001666,2]
[399737289,1766645450291,-150.03943629,0.0001666,2]
[399737290,1766645450301,-299.35190735,0.0001666,2]
[399737291,1766645450311,-150.0,0.00016675,2]
[399737292,1766645450320,-150.0,0.00016676,2]
[399737293,1766645450330,-207.98052348,0.00016677,2]
[399737294,1766645450340,-172.12623375,0.00016677,2]
[399737295,1766645450350,-150.03943629,0.00016677,2]
[399737296,1766645450361,-299.35190735,0.00016677,2]
[399737297,1766645450371,-150.0,0.00016689,2]
[399737298,1766645450381,-150.0,0.00016694,2]
[399737299,1766645450391,-207.98052348,0.00016695,2]
[399737300,1766645450401,-172.12623375,0.00016695,2]
[399737301,1766645450410,-150.03943629,0.00016695,2]
[399737302,1766645450420,-299.35190735,0.00016695,2]
[399737303,1766645450430,-150.0,0.00016699,2]
[399737304,1766645450440,-150.0,0.00016703,2]
[399737305,1766645450450,-150.0,0.00016703,2]
[399737306,1766645450460,-207.98052348,0.00016712,2]
[399737307,1766645450470,-172.12623375,0.00016712,2]
[399737308,1766645450481,-150.03943629,0.00016712,2]
[399737309,1766645450491,-299.35190735,0.00016712,2]
[399737310,1766645450500,-150.0,0.00016712,2]
[399737311,1766645450509,-150.0,0.00016718,2]
[399737312,1766645450519,-150.0,0.00016723,2]
[399737313,1766645450529,-150.0,0.00016725,2]
[399737314,1766645450540,-207.98052348,0.00016729,2]
[399737315,1766645450550,-172.12623375,0.00016729,2]
[399737316,1766645450560,-150.03943629,0.00016729,2]
[399737317,1766645450569,-299.35190735,0.00016729,2]
[399737318,1766645450580,-150.0,0.00016731,2]
[399737319,1766645450590,-150.0,0.00016732,2]
[399737320,1766645450601,-224.2608279,0.00016736,2]
[399737321,1766645450610,-207.98052348,0.00016746,2]
[399737322,1766645450620,-172.12623375,0.00016746,2]
[399737323,1766645450631,-150.03943629,0.00016746,2]
[399737324,1766645450640,-299.35190735,0.00016746,2]
[399737325,1766645450651,-150.0,0.00016747,2]
[399737326,1766645450660,-150.0,0.00016749,2]
[399737327,1766645450670,-207.98052348,0.00016763,2]
[399737328,1766645450680,-172.12623375,0.00016763,2]
[399737329,1766645450693,-150.03943629,0.00016763,2]
[399737330,1766645450703,-299.35190735,0.00016763,2]
[399737331,1766645450713,-150.0,0.00016767,2]
[399737332,1766645450724,-150.0,0.00016771,2]
[399737333,1766645450734,-150.0,0.00016774,2]
[399737334,1766645450744,-150.0,0.00016774,2]
[399737335,1766645450754,-207.98052348,0.0001678,2]
[399737336,1766645450764,-172.12623375,0.0001678,2]
[399737337,1766645450774,-150.03943629,0.0001678,2]
[399737338,1766645450784,-299.35190735,0.0001678,2]
[399737339,1766645450794,-150.0,0.00016785,2]
[399737340,1766645450804,-150.0,0.0001679,2]
[399737341,1766645450814,-150.0,0.00016795,2]
[399737342,1766645450824,-207.98052348,0.00016798,2]
[399737343,1766645450834,-172.12623375,0.00016798,2]
[399737344,1766645450844,-150.03943629,0.00016798,2]
[399737345,1766645450854,-299.35190735,0.00016798,2]
[399737346,1766645450864,-150.0,0.00016798,2]
[399737347,1766645450874,-150.0,0.00016804,2]
[399737348,1766645450883,-150.0,0.00016807,2]
[399737349,1766645450893,-207.98052348,0.00016815,2]
[399737350,1766645450903,-172.12623375,0.00016815,2]
[399737351,1766645450913,-150.03943629,0.00016815,2]
[399737352,1766645450923,-299.35190735,0.00016815,2]
[399737353,1766645450932,-150.0,0.00016816,2]
[399737354,1766645451009,-150.0,0.00016819,2]
[399737355,1766645451019,-150.0,0.00016822,2]
[399737356,1766645451029,-207.98052348,0.00016832,2]
[399737357,1766645451039,-172.12623375,0.00016832,2]
[399737358,1766645451048,-150.03943629,0.00016832,2]
[399737359,1766645451057,-299.35190735,0.00016832,2]
[399737360,1766645451067,-150.0,0.0001684,2]
[399737361,1766645451077,-150.0,0.00016843,2]
[399737362,1766645451087,-150.0,0.00016845,2]
[399737363,1766645451098,-207.98052348,0.00016849,2]
[399737364,1766645451108,-172.12623375,0.00016849,2]
[399737365,1766645451118,-150.03943629,0.00016849,2]
[399737366,1766645451128,-299.35190735,0.00016849,2]
[399737367,1766645451138,-150.0,0.00016856,2]
[399737368,1766645451148,-150.0,0.00016858,2]
[399737369,1766645451158,-150.0,0.00016859,2]
[399737370,1766645451168,-200.0,0.00016864,2]
[399737371,1766645451178,-207.98052348,0.00016866,2]
[399737372,1766645451188,-172.12623375,0.00016866,2]
[399737373,1766645451198,-150.03943629,0.00016866,2]
[399737374,1766645451207,-299.35190735,0.00016866,2]
[399737375,1766645451217,-150.0,0.00016867,2]
[399737376,1766645451227,-150.0,0.00016877,2]
[399737377,1766645451237,-207.98052348,0.00016883,2]
[399737378,1766645451246,-172.12623375,0.00016883,2]
[399737379,1766645451255,-150.03943629,0.00016883,2]
[399737380,1766645451265,-299.35190735,0.00016883,2]
[399737381,1766645451275,-150.0,0.00016891,2]
[399737382,1766645451284,-150.0,0.00016895,2]
[399737383,1766645451294,-150.0,0.00016897,2]
[399737384,1766645451304,-10000.0,0.00016899,2]
[399737385,1766645451313,-825.23,0.00016899,2]
[399737386,1766645451323,-500.0,0.00016899,2]
[399737387,1766645451333,-468.04981383,0.00016899,2]
[399737388,1766645451343,-238.33319847,0.00016899,2]
[399737389,1766645451353,-521.79,0.00016899,2]
[399737390,1766645451363,-500.0,0.00016899,2]
[399737391,1766645451373,-500.0,0.00016899,2]
[399737392,1766645451383,-610.34,0.00016899,2]
[399737393,1766645451392,-500.0,0.00016899,2]
[399737394,1766645451401,-765.26,0.00016899,2]
[399737395,1766645451412,-500.0,0.00016899,2]
[399737396,1766645451421,-170.28248417,0.000169,2]
[399737397,1766645451431,-58303.00077057,0.000169,2]
[399737398,1766645451441,-223.45632631,0.000169,2]
[399737399,1766645451451,-571.04786106,0.000169,2]
[399737400,1766645451461,-156.81485744,0.000169,2]
[399737401,1766645451471,-398.62325351,0.000169,2]
[399737402,1766645451481,-207.98052348,0.00016901,2]
[399737403,1766645451492,-172.12623375,0.00016901,2]
[399737404,1766645451502,-150.03943629,0.00016901,2]
[399737405,1766645451512,-299.35190735,0.00016901,2]
[399737406,1766645451521,-150.0,0.00016901,2]
[399737407,1766645451531,-150.0,0.00016913,2]
[399737408,1766645451541,-150.0,0.00016915,2]
[399737409,1766645451551,-150.0,0.00016916,2]
[399737410,1766645451561,-207.98052348,0.00016918,2]
[399737411,1766645451571,-172.12623375,0.00016918,2]
[399737412,1766645451580,-150.03943629,0.00016918,2]
[399737413,1766645451590,-299.35190735,0.00016918,2]
[399737414,1766645451600,-150.0,0.00016921,2]
[399737415,1766645451610,-150.0,0.00016932,2]
[399737416,1766645451620,-207.98052348,0.00016935,2]
[399737417,1766645451631,-172.12623375,0.00016935,2]
[399737418,1766645451640,-150.03943629,0.00016935,2]
[399737419,1766645451651,-299.35190735,0.00016935,2]
[399737420,1766645451661,-150.0,0.00016938,2]
[399737421,1766645451671,-150.0,0.00016944,2]
[399737422,1766645451680,-150.0,0.0001695,2]
[399737423,1766645451690,-207.98052348,0.00016952,2]
[399737424,1766645451705,-172.12623375,0.00016952,2]
[399737425,1766645451715,-150.03943629,0.00016952,2]
[399737426,1766645451724,-299.35190735,0.00016952,2]
[399737427,1766645451734,-150.0,0.00016962,2]
[399737428,1766645451746,-150.0,0.00016968,2]
[399737429,1766645451755,-207.98052348,0.00016969,2]
[399737430,1766645451768,-172.12623375,0.00016969,2]
[399737431,1766645451778,-150.03943629,0.00016969,2]
[399737432,1766645451787,-299.35190735,0.00016969,2]
[399737433,1766645451797,-172.71520576,0.00016973,2]
[399737434,1766645451807,-500.0,0.00016973,2]
[399737435,1766645451817,-174.86770557,0.00016973,2]
[399737436,1766645451827,-164.91223401,0.00016973,2]
[399737437,1766645451836,-500.0,0.00016973,2]
[399737438,1766645451846,-500.0,0.00016973,2]
[399737439,1766645451856,-500.0,0.00016973,2]
[399737440,1766645451865,-500.0,0.00016973,2]
[399737441,1766645451875,-223.10484954,0.00016973,2]
[399737442,1766645451884,-500.0,0.00016973,2]
[399737443,1766645451893,-500.0,0.00016973,2]
[399737444,1766645451903,-500.0,0.00016973,2]
[399737445,1766645451913,-500.0,0.00016973,2]
[399737446,1766645451924,-500.0,0.00016973,2]
[399737447,1766645451934,-500.0,0.00016973,2]
[399737448,1766645451943,-500.0,0.00016973,2]
[399737449,1766645451953,-157.08021771,0.00016973,2]
[399737450,1766645451963,-163.82860777,0.00016973,2]
[399737451,1766645451973,-500.0,0.00016973,2]
[399737452,1766645451984,-500.0,0.00016973,2]
[399737453,1766645451995,-500.0,0.00016973,2]
[399737454,1766645452004,-500.0,0.00016973,2]
[399737455,1766645452014,-162.97042988,0.00016973,2]
[399737456,1766645452024,-548.10712496,0.00016973,2]
[399737457,1766645452035,-538.67026127,0.00016973,2]
[399737458,1766645452044,-609.0239433,0.00016973,2]
[399737459,1766645452055,-500.0,0.00016973,2]
[399737460,1766645452064,-500.34321322,0.00016973,2]
[399737461,1766645452075,-500.25597826,0.00016973,2]
[399737462,1766645452085,-500.0,0.00016973,2]
[399737463,1766645452095,-162.14010423,0.00016973,2]
[399737464,1766645452105,-501.82675506,0.00016973,2]
[399737465,1766645452115,-500.0,0.00016973,2]
[399737466,1766645452125,-318.77837914,0.00016973,2]
[399737467,1766645452135,-500.0,0.00016973,2]
[399737468,1766645452145,-500.0,0.00016973,2]
[399737469,1766645452155,-500.0,0.00016973,2]
[399737470,1766645452165,-150.0,0.00016973,2]
[399737471,1766645452176,-218.14975262,0.00016983,2]
[399737472,1766645452186,-505.30351694,0.00016983,2]
[399737473,1766645452196,-500.0,0.00016986,2]
[399737474,1766645452206,-695.14,0.00016986,2]
[399737475,1766645452215,-500.0,0.00016986,2]
[399737476,1766645452225,-500.0,0.00016986,2]
[399737477,1766645452234,-296.93519622,0.00016986,2]
[399737478,1766645452244,-500.0,0.00016986,2]
[399737479,1766645452255,-500.0,0.00016986,2]
[399737480,1766645452264,-505.82761911,0.00016986,2]
[399737481,1766645452273,-183.38649304,0.00016986,2]
[399737482,1766645452283,-207.98052348,0.00016986,2]
[399737483,1766645452293,-178.95978475,0.00016986,2]
[399737484,1766645452303,-172.12623375,0.00016986,2]
[399737485,1766645452313,-150.03943629,0.00016986,2]
[399737486,1766645452323,-247.20495061,0.00016986,2]
[399737487,1766645452333,-189.4339465,0.00016986,2]
[399737488,1766645452343,-299.35190735,0.00016986,2]
[399737489,1766645452353,-216.83783771,0.00016986,2]
[399737490,1766645452363,-165.80661735,0.00016986,2]
[399737491,1766645452373,-226.51547487,0.00016986,2]
[399737492,1766645452383,-167.35024843,0.00016986,2]
[399737493,1766645452392,-193.50552158,0.00016986,2]